{"text_format":"1","workbook":"xlsx","n_sheets":3,"sheets":["Fonctions Etudiantes","Unité de regroupement","Titre d'emploi"],"not_rendered":{"charts":0,"images":1,"macros":1,"external_links":0,"defined_names":4,"comments":1,"pivot_tables":0},"unopened":[],"bounds":{"document_bytes":16777216,"sheet_cells":100000,"rows_first":2000,"rows_last":500,"rows_between":2000,"halvings":0,"cell_chars":16384,"cell_head_chars":4096},"cells_cut":0,"cells_raw":0,"read":"whole","date_system":"1900"}

{"sheet":"Fonctions Etudiantes","index":0,"n_rows":133,"n_cols":85,"rows_kept":133,"cut":false,"hidden":false,"merged":[[68,57,68,60],[68,62,68,63],[68,72,68,82],[70,47,70,54],[70,57,70,60],[70,62,70,63],[70,72,70,82],[132,71,132,85],[5,69,5,86],[85,67,85,71],[127,77,127,85],[128,77,128,85],[118,45,118,74],[102,9,102,85],[53,73,53,75],[53,81,53,82],[73,67,73,74],[100,62,100,63],[131,19,131,26],[131,37,131,38],[123,1,123,30],[124,33,124,41],[129,1,129,30],[129,45,129,74],[12,1,12,12],[12,20,12,28],[12,33,12,40],[12,48,12,55],[14,1,14,12],[14,20,14,27],[14,33,14,40],[14,48,14,55],[131,79,131,86],[81,29,81,33],[53,47,53,54],[121,1,121,85],[117,45,117,74],[77,29,77,33],[119,45,119,74],[118,77,118,85],[55,1,55,4],[57,1,57,4],[59,1,59,4],[77,1,77,5],[64,37,64,39],[64,47,64,54],[34,64,34,71],[128,1,128,30],[80,1,80,5],[83,1,83,4],[80,6,80,33],[87,35,87,39],[87,41,87,45],[87,47,87,54],[81,35,81,40],[81,41,81,45],[83,56,83,60],[83,6,83,33],[85,6,85,33],[87,6,87,33],[85,35,85,39],[85,41,85,45],[85,47,85,54],[83,35,83,39],[83,41,83,45],[83,47,83,54],[59,35,59,39],[59,41,59,45],[47,1,47,5],[47,8,47,12],[53,41,53,45],[57,41,57,45],[59,56,59,60],[59,62,59,65],[80,35,80,40],[80,41,80,45],[53,1,53,4],[77,39,77,43],[77,47,77,51],[77,57,77,61],[73,9,73,16],[73,21,73,28],[50,1,50,5],[51,35,51,40],[55,35,55,39],[57,35,57,39],[62,47,62,54],[77,8,77,12],[77,15,77,16],[77,20,77,24],[24,30,24,32],[50,35,50,40],[50,63,50,68],[43,67,43,74],[50,6,50,33],[43,9,43,16],[38,30,38,60],[47,20,47,24],[50,41,50,45],[38,66,38,73],[127,33,127,41],[128,33,128,41],[127,1,127,30],[125,45,125,74],[125,1,125,30],[128,45,128,73],[127,45,127,74],[64,57,64,60],[64,62,64,63],[64,72,64,82],[66,37,66,39],[66,47,66,54],[66,57,66,60],[66,62,66,63],[66,72,66,82],[83,77,83,79],[77,77,77,81],[81,77,81,79],[73,53,73,60],[80,47,80,54],[81,47,81,54],[81,56,81,60],[80,63,80,68],[83,81,83,82],[83,73,83,75],[0,19,0,32],[57,56,57,60],[34,1,34,32],[34,49,34,56],[53,67,53,71],[57,62,57,65],[57,67,57,71],[51,41,51,45],[55,47,55,54],[47,29,47,33],[43,21,43,28],[34,37,34,40],[51,29,51,33],[53,6,53,33],[55,41,55,45],[55,6,55,33],[53,35,53,39],[47,15,47,16],[47,57,47,61],[43,53,43,60],[7,1,7,34],[22,30,22,32],[23,30,23,32],[7,69,7,76],[124,77,124,85],[123,33,123,41],[123,45,123,74],[124,1,124,30],[124,45,124,74],[123,77,123,85],[60,20,60,30],[117,77,117,85],[81,80,81,83],[81,84,81,85],[77,67,77,71],[81,61,81,65],[103,1,103,85],[85,1,85,4],[87,1,87,4],[89,1,89,4],[90,20,90,30],[55,84,55,85],[55,81,55,82],[55,77,55,79],[51,84,51,85],[62,72,62,82],[83,84,83,85],[0,77,0,85],[7,78,7,85],[57,84,57,85],[59,84,59,85],[50,77,50,79],[38,80,38,85],[59,77,59,79],[59,81,59,82],[47,77,47,81],[53,84,53,85],[57,81,57,82],[51,77,51,79],[51,80,51,83],[53,77,53,79],[57,77,57,79],[22,77,22,79],[23,77,23,79],[1,16,1,71],[2,16,2,71],[3,16,3,71],[57,6,57,33],[59,6,59,33],[59,47,59,54],[59,67,59,71],[59,73,59,75],[55,67,55,71],[55,73,55,75],[47,67,47,71],[55,56,55,60],[51,61,51,65],[57,73,57,75],[7,36,7,66],[53,56,53,60],[53,62,53,65],[47,39,47,43],[47,47,47,51],[55,62,55,65],[51,47,51,54],[57,47,57,54],[50,47,50,54],[51,56,51,60],[85,73,85,75],[85,77,85,79],[85,81,85,82],[85,56,85,60],[85,62,85,65],[85,84,85,85],[87,67,87,71],[87,73,87,75],[87,77,87,79],[87,81,87,82],[68,37,68,39],[68,47,68,54],[89,6,89,33],[89,77,89,79],[89,81,89,82],[100,72,100,82],[89,62,89,65],[89,84,89,85],[92,47,92,54],[92,72,92,82],[89,67,89,71],[89,73,89,75],[100,57,100,60],[89,35,89,39],[89,41,89,45],[89,47,89,54],[89,56,89,60],[100,47,100,54],[83,62,83,65],[83,67,83,71],[80,77,80,79],[87,84,87,85],[87,56,87,60],[87,62,87,65],[98,37,98,39],[98,47,98,54],[98,57,98,60],[98,62,98,63],[98,72,98,82],[94,37,94,39],[94,47,94,54],[94,57,94,60],[94,62,94,63],[94,72,94,82],[96,37,96,39],[96,47,96,54],[96,57,96,60],[96,62,96,63],[96,72,96,82]]}
[null,null,null,null,null,null,null,null,null,null,null,null,null,null,null,null,null,null,null,null,null,null,null,null,null,null,null,null,null,null,null,null,null,null,null,null,null,null,null,null,null,null,null,null,null,null,null,null,null,null,null,null,null,null,null,null,null,null,null,null,null,null,null,null,null,null,null,null,null,null,null,null,null,null,null,null,null,"JOURNALIER"]
[null,null,null,null,null,null,null,null,null,null,null,null,null,null,null,null,"DEMANDE DE RÉMUNÉRATION"]
[null,null,null,null,null,null,null,null,null,null,null,null,null,null,null,null,"AUTRES FONCTIONS ÉTUDIANTES"]
[null,null,null,null,null,null,null,null,null,null,null,null,null,null,null,null,"(AUTRES QUE TITRES D'EMPLOIS SYNDIQUÉS)"]
[]
[null,"NOM",null,null,null,null,null,null,null,null,null,null,null,null,null,null,null,null,null,null,null,null,null,null,null,null,null,null,null,null,null,null,null,null,null,null,"PRÉNOM",null,null,null,null,null,null,null,null,null,null,null,null,null,null,null,null,null,null,null,null,null,null,null,null,null,null,null,null,null,null,null,null,"MATRICULE (obligatoire)"]
[null,null,null,null,null,null,null,null,null,null,null,null,null,null,null,null,null,null,null,null,null,null,null,null,null,null,null,null,null,null,null,null,null,null,null,null,null,null,null,null,null,null,null,null,null,null,null,null,null,null,null,null,null,null,null,null,null,null,null,null,null,null,null,null,null,null,null,null,null,null,"Employé",null,null,null,null,null,null,null,null,"Étudiant"]
[]
[]
[]
[null,"ETUDIANT ÉTRANGER"]
[]
[null,"PERMIS DE TRAVAIL",null,null,null,null,null,null,null,null,null,null,null,null,null,null,null,null,null,null,"DATE DE DÉBUT",null,null,null,null,null,null,null,null,null,null,null,null,"DATE DE FIN",null,null,null,null,null,null,null,null,null,null,null,null,null,null,"FIN NAS"]
[]
[]
[]
[]
[]
[]
[]
[]
[null,"TITRE D'EMPLOI"]
[null,null,null,"Étudiants portes ouvertes/visites collèges",null,null,null,null,null,null,null,null,null,null,null,null,null,null,null,null,null,null,null,null,null,null,null,"TAG:",null,null,1075,null,null,null,null,null,null,null,null,null,null,null,null,null,null,null,"Étudiants FSE",null,null,null,null,null,null,null,null,null,null,null,null,null,null,null,null,null,null,null,null,null,null,null,null,null,null,null,"TAG:",null,null,1141]
[null,null,null,"Étudiants - Autres Polytechnique",null,null,null,null,null,null,null,null,null,null,null,null,null,null,null,null,null,null,null,null,null,null,null,"TAG:",null,null,1141,null,null,null,null,null,null,null,null,null,null,null,null,null,null,null,"Étudiants autres universités ou non étudiants Poly",null,null,null,null,null,null,null,null,null,null,null,null,null,null,null,null,null,null,null,null,null,null,null,null,null,null,null,"TAG:",null,null,1142]
[null,null,null,"Stagiaire de recherche",null,null,null,null,null,null,null,null,null,null,null,null,null,null,null,null,null,null,null,null,null,null,null,"TAG:",null,null,1122]
[]
[]
[null,"CYCLE DE L'ÉTUDIANT",null,null,null,null,null,null,null,null,null,null,null,null,null,null,null,null,null,null,null,null,null,null,null,null,null,null,null,null,null,null,null,null,null,null,null,null,null,null,null,null,null,null,null,null,null,null,null,null,null,null,null,null,null,null,null,null,null,null,null,null,null,null,null,null,"OBTENU",null,null,null,null,null,"EN COURS"]
[null,null,null,null,null,null,null,null,null,null,null,null,null,null,null,null,null,null,null,null,null,null,null,null,null,null,null,null,null,null,null,null,null,null,null,null,null,null,null,null,null,null,null,null,null,null,null,null,null,null,null,null,null,null,null,"BACCALAURÉAT"]
[null,null,null,null,null,null,null,null,null,null,null,null,null,null,null,null,null,null,null,null,null,null,null,null,null,null,null,null,null,null,null,null,null,null,null,null,null,null,null,null,null,null,null,null,null,null,null,null,null,null,null,null,null,null,null,"MAITRISE"]
[null,null,null,null,null,null,null,null,null,null,null,null,null,null,null,null,null,null,null,null,null,null,null,null,null,null,null,null,null,null,null,null,null,null,null,null,null,null,null,null,null,null,null,null,null,null,null,null,null,null,null,null,null,null,null,"DOCTORAT"]
[]
[]
[null,"CENTRE, DÉPARTEMENT, INSTITUT ou SERVICE",null,null,null,null,null,null,null,null,null,null,null,null,null,null,null,null,null,null,null,null,null,null,null,null,null,null,null,null,null,null,null,"UNITÉ ADMINISTRATIVE",null,null,null,null,null,null,null,null,null,null,null,null,null,"SEMAINE DÉBUT D'EMPLOI",null,null,null,null,null,null,null,null,null,null,null,null,null,null,"SEMAINE FIN D'EMPLOI",null,null,null,null,null,null,null,null,null,null,null,null,null,null,null,"TRIMESTRE"]
[null,null,null,null,null,null,null,null,null,null,null,null,null,null,null,null,null,null,null,null,null,null,null,null,null,null,null,null,null,null,null,null,null,null,null,null,null,null,null,null,null,null,null,null,null,null,null,null,null,null,null,null,null,null,null,null,null,null,null,null,null,null,null,null,null,null,null,null,null,null,null,null,null,null,null,null,null,"A",null,null,"H",null,null,"E"]
[]
[]
[null,null,null,null,null,null,null,null,null,null,null,null,null,null,null,null,null,null,null,null,null,null,null,null,null,null,null,null,null,null,"TITRE D'EMPLOI",null,null,null,null,null,null,null,null,null,null,null,null,null,null,null,null,null,null,null,null,null,null,null,null,null,null,null,null,null,null,null,null,"UNITÉ DE REGROUPEMENT",null,null,null,null,null,null,null,null,null,null,null,null,null,null,null,null,null,null,"STATUT"]
[]
[]
[]
[]
[null,null,null,null,null,null,null,null,null,null,"DIMANCHE",null,null,null,null,null,null,null,null,null,null,null,null,"SAMEDI"]
[null,"SEMAINE DU",null,null,null,null,null,null,null,null,null,null,null,null,null,null,null,null,"AU"]
[]
[]
[null,"No Période",null,null,null,null,null,null,"NB.HRES",null,null,null,null,null,"SEM.",null,null,null,null,null,"DIMANCHE",null,null,null,null,null,null,null,null,"LUNDI",null,null,null,null,null,null,null,null,null,"MARDI",null,null,null,null,null,null,null,"MERCREDI",null,null,null,null,null,null,null,null,null,"JEUDI",null,null,null,null,null,null,null,null,null,"VENDREDI",null,null,null,null,null,null,null,null,null,"SAMEDI"]
[null,null,null,null,null,null,null,null,{"$f":"U48+AD48+AN48+AV48+BF48+BP48+BZ48","v":0}]
[]
[]
[null,"TAG",null,null,null,null,"TITRE D'EMPLOI",null,null,null,null,null,null,null,null,null,null,null,null,null,null,null,null,null,null,null,null,null,null,null,null,null,null,null,null,"NOMBRE",null,null,null,null,null,"TAUX",null,null,null,null,null,"MONTANT",null,null,null,null,null,null,null,null,null,null,null,null,null,null,null,null,null,null,null,null,null,null,null,null,null,null,null,null,null,"UNITÉ"]
[null,null,null,null,null,null,null,null,null,null,null,null,null,null,null,null,null,null,null,null,null,null,null,null,null,null,null,null,null,null,null,null,null,null,null,"HRES/SEM.",null,null,null,null,null,"HORAIRE",null,null,null,null,null,"TOTAL",null,null,null,null,null,null,null,null,"UBR",null,null,null,null,"COMPTE",null,null,null,null,"FINANCEMENT",null,null,null,null,null,null,"CBS",null,null,null,"ADM.",null,null,"FONDS",null,null,null,"%"]
[]
[null,null,null,null,null,null,null,null,null,null,null,null,null,null,null,null,null,null,null,null,null,null,null,null,null,null,null,null,null,null,null,null,null,null,null,null,null,null,null,null,null,null,null,null,null,null,null,{"$f":"IF(AP54=\" \",0,AJ54*AP54)","v":0}]
[]
[null,null,null,null,null,null,null,null,null,null,null,null,null,null,null,null,null,null,null,null,null,null,null,null,null,null,null,null,null,null,null,null,null,null,null,null,null,null,null,null,null,null,null,null,null,null,null,{"$f":"IF(AP56=\" \",0,AJ56*AP56)","v":0}]
[]
[null,null,null,null,null,null,null,null,null,null,null,null,null,null,null,null,null,null,null,null,null,null,null,null,null,null,null,null,null,null,null,null,null,null,null,null,null,null,null,null,null,null,null,null,null,null,null,{"$f":"IF(AP58=\" \",0,AJ58*AP58)","v":0}]
[]
[null,null,null,null,null,null,null,null,null,null,null,null,null,null,null,null,null,null,null,null,null,null,null,null,null,null,null,null,null,null,null,null,null,null,null,null,null,null,null,null,null,null,null,null,null,null,null,{"$f":"IF(AP60=\" \",0,AJ60*AP60)","v":0}]
[null,null,null,null,null,null,null,null,null,null,null,null,null,null,null,null,null,null,null,null,{"$f":"IF(I61=\" \",\" \",I61*O61)","v":0}]
[]
[null,null,null,null,null,null,null,null,null,null,null,null,null,null,null,null,null,null,null,null,null,null,null,null,null,null,null,null,null,null,null,null,null,null,null,null,null,null,"Sous-total",null,null,null,null,null,null,null,null,{"$f":"SUM(AV54:BC60)","v":0}]
[]
[null,null,null,null,null,null,null,null,null,null,null,null,null,null,null,null,null,null,null,null,null,null,null,null,null,null,null,null,null,null,null,null,null,null,null,null,null,0.08,null,null,"de vacances",null,null,null,null,null,null,{"$f":"ROUND($AV$63*AL65,2)","v":0}]
[]
[null,null,null,null,null,null,null,null,null,null,null,null,null,null,null,null,null,null,null,null,null,null,null,null,null,null,null,null,null,null,null,null,null,null,null,null,null,0.03,null,null,"de congés",null,null,null,null,null,null,{"$f":"ROUND($AV$63*AL67,2)","v":0}]
[]
[null,null,null,null,null,null,null,null,null,null,null,null,null,null,null,null,null,null,null,null,null,null,null,null,null,null,null,null,null,null,null,null,null,null,null,null,null,3.5999999999999997E-2,null,null,"de jours fériés",null,null,null,null,null,null,{"$f":"ROUND($AV$63*AL69,2)","v":0}]
[]
[null,null,null,null,null,null,null,null,null,null,null,null,null,null,null,null,null,null,null,null,null,null,null,null,null,null,null,null,null,null,null,null,null,null,null,null,null,null,null,null,"TOTAL",null,null,null,null,null,null,{"$f":"SUM(AV63:BC69)","v":0}]
[]
[null,null,null,null,null,null,null,null,null,null,"DIMANCHE",null,null,null,null,null,null,null,null,null,null,null,null,"SAMEDI"]
[null,"SEMAINE DU",null,null,null,null,null,null,null,null,null,null,null,null,null,null,null,null,"AU"]
[]
[]
[null,"No Période",null,null,null,null,null,null,"NB.HRES",null,null,null,null,null,"SEM.",null,null,null,null,null,"DIMANCHE",null,null,null,null,null,null,null,null,"LUNDI",null,null,null,null,null,null,null,null,null,"MARDI",null,null,null,null,null,null,null,"MERCREDI",null,null,null,null,null,null,null,null,null,"JEUDI",null,null,null,null,null,null,null,null,null,"VENDREDI",null,null,null,null,null,null,null,null,null,"SAMEDI"]
[null,null,null,null,null,null,null,null,{"$f":"U78+AD78+AN78+AV78+BF78+BP78+BZ78","v":0}]
[]
[]
[null,"TAG",null,null,null,null,"TITRE D'EMPLOI",null,null,null,null,null,null,null,null,null,null,null,null,null,null,null,null,null,null,null,null,null,null,null,null,null,null,null,null,"NOMBRE",null,null,null,null,null,"TAUX",null,null,null,null,null,"MONTANT",null,null,null,null,null,null,null,null,null,null,null,null,null,null,null,null,null,null,null,null,null,null,null,null,null,null,null,null,null,"UNITÉ"]
[null,null,null,null,null,null,null,null,null,null,null,null,null,null,null,null,null,null,null,null,null,null,null,null,null,null,null,null,null,null,null,null,null,null,null,"HRES/SEM.",null,null,null,null,null,"HORAIRE",null,null,null,null,null,"TOTAL",null,null,null,null,null,null,null,null,"UBR",null,null,null,null,"COMPTE",null,null,null,null,"FINANCEMENT",null,null,null,null,null,null,"CBS",null,null,null,"ADM.",null,null,"FONDS",null,null,null,"%"]
[]
[null,null,null,null,null,null,null,null,null,null,null,null,null,null,null,null,null,null,null,null,null,null,null,null,null,null,null,null,null,null,null,null,null,null,null,null,null,null,null,null,null,null,null,null,null,null,null,{"$f":"IF(AP84=\" \",0,AJ84*AP84)","v":0}]
[]
[null,null,null,null,null,null,null,null,null,null,null,null,null,null,null,null,null,null,null,null,null,null,null,null,null,null,null,null,null,null,null,null,null,null,null,null,null,null,null,null,null,null,null,null,null,null,null,{"$f":"IF(AP86=\" \",0,AJ86*AP86)","v":0}]
[]
[null,null,null,null,null,null,null,null,null,null,null,null,null,null,null,null,null,null,null,null,null,null,null,null,null,null,null,null,null,null,null,null,null,null,null,null,null,null,null,null,null,null,null,null,null,null,null,{"$f":"IF(AP88=\" \",0,AJ88*AP88)","v":0}]
[]
[null,null,null,null,null,null,null,null,null,null,null,null,null,null,null,null,null,null,null,null,null,null,null,null,null,null,null,null,null,null,null,null,null,null,null,null,null,null,null,null,null,null,null,null,null,null,null,{"$f":"IF(AP90=\" \",0,AJ90*AP90)","v":0}]
[null,null,null,null,null,null,null,null,null,null,null,null,null,null,null,null,null,null,null,null,{"$f":"IF(I91=\" \",\" \",I91*O91)","v":0}]
[]
[null,null,null,null,null,null,null,null,null,null,null,null,null,null,null,null,null,null,null,null,null,null,null,null,null,null,null,null,null,null,null,null,null,null,null,null,null,null,"Sous-total",null,null,null,null,null,null,null,null,{"$f":"SUM(AV84:BC90)","v":0}]
[]
[null,null,null,null,null,null,null,null,null,null,null,null,null,null,null,null,null,null,null,null,null,null,null,null,null,null,null,null,null,null,null,null,null,null,null,null,null,0.08,null,null,"de vacances",null,null,null,null,null,null,{"$f":"ROUND($AV$93*AL95,2)","v":0}]
[]
[null,null,null,null,null,null,null,null,null,null,null,null,null,null,null,null,null,null,null,null,null,null,null,null,null,null,null,null,null,null,null,null,null,null,null,null,null,0.03,null,null,"de congés",null,null,null,null,null,null,{"$f":"ROUND($AV$93*AL97,2)","v":0}]
[]
[null,null,null,null,null,null,null,null,null,null,null,null,null,null,null,null,null,null,null,null,null,null,null,null,null,null,null,null,null,null,null,null,null,null,null,null,null,3.5999999999999997E-2,null,null,"de jours fériés",null,null,null,null,null,null,{"$f":"ROUND($AV$93*AL99,2)","v":0}]
[]
[null,null,null,null,null,null,null,null,null,null,null,null,null,null,null,null,null,null,null,null,null,null,null,null,null,null,null,null,null,null,null,null,null,null,null,null,null,null,null,null,"TOTAL",null,null,null,null,null,null,{"$f":"SUM(AV93:BC99)","v":0}]
[]
["REMARQUES:"]
[]
[]
[]
[]
[]
[]
[]
[]
[]
[]
[]
[]
[]
[]
[null,null,null,null,null,null,null,null,null,null,null,null,null,null,null,null,null,null,null,null,null,null,null,null,null,null,null,null,null,null,null,null,null,null,null,null,null,null,null,null,null,null,null,null,null,"SIGNATURE DE L'EMPLOYÉ",null,null,null,null,null,null,null,null,null,null,null,null,null,null,null,null,null,null,null,null,null,null,null,null,null,null,null,null,null,null,null,"DATE"]
[]
[]
[]
[null,"SIGNATURES POUR L'ÉCOLE POLYTECHNIQUE"]
[]
[null,"RESPONSABLE DU PROJET/ACTIVITÉ",null,null,null,null,null,null,null,null,null,null,null,null,null,null,null,null,null,null,null,null,null,null,null,null,null,null,null,null,null,null,null,"DATE",null,null,null,null,null,null,null,null,null,null,null,"DIRECTION DU CENTRE, DÉPARTEMENT, INSTITUT OU SERVICE",null,null,null,null,null,null,null,null,null,null,null,null,null,null,null,null,null,null,null,null,null,null,null,null,null,null,null,null,null,null,null,"DATE"]
[]
[]
[]
[null,"SERVICE DES RESSOURCES HUMAINES",null,null,null,null,null,null,null,null,null,null,null,null,null,null,null,null,null,null,null,null,null,null,null,null,null,null,null,null,null,null,null,"DATE",null,null,null,null,null,null,null,null,null,null,null,"SERVICE DES FINANCES",null,null,null,null,null,null,null,null,null,null,null,null,null,null,null,null,null,null,null,null,null,null,null,null,null,null,null,null,null,null,null,"DATE"]
[]
[]
[]
[null,null,null,null,null,null,null,null,null,null,null,null,null,null,null,null,null,null,null,null,null,null,null,null,null,null,null,null,null,null,null,null,null,null,null,null,null,null,null,null,null,null,null,null,null,null,null,null,null,null,null,null,null,null,null,null,null,null,null,null,null,null,null,null,null,null,null,null,null,null,null,"DR-AFE",null,null,null,null,null,null,null,"######"]
[null,null,null,null,null,null,null,null,null,null,null,null,null,null,null,null,null,null,null,null,null,null,null,null,null,null,null,null,null,null,null,null,null,null,null,null,null,null,null,null,null,null,null,null,null,null,null,null,null,null,null,null,null,null,null,null,null,null,null,null,null,null,null,null,null,null,null,null,null,null,null,"(10 décembre 2015)"]

{"sheet":"Unité de regroupement","index":1,"n_rows":5,"n_cols":1,"rows_kept":5,"cut":false,"hidden":true,"merged":[]}
["AAREP"]
["ACEP"]
["APEP"]
["AUXI"]
["CCTP"]

{"sheet":"Titre d'emploi","index":2,"n_rows":5,"n_cols":3,"rows_kept":5,"cut":false,"hidden":true,"merged":[[3,32,3,34]]}
[null,"Étudiants portes ouvertes/visites collèges",1075]
[null,"Stagiaire de recherche",1122]
[null,"Étudiants - Autres Polytechnique",1141]
[null,"Étudiants autres universités ou non étudiants Poly",1142]
[null,"Étudiants FSE",1141]